[Event "Krakow Championship-A 2022"]
[Site "Krakow"]
[Date "2022.07.01"]
[Round "8.16"]
[White "Liu, Casper"]
[Black "Shehzad, Shazil"]
[Result "1-0"]
[ECO "B23"]
[WhiteElo "2218"]
[BlackElo "2237"]
[Annotator "TA"]
[PlyCount "53"]
[EventDate "2022.06.25"]
[EventType "swiss"]
[EventCountry "POL"]
[SourceTitle "playchess.com"]
[Source "ChessBase"]
[SourceQuality "1"]
[TimeControl "40/5400+30:1800+30"]

{[%evp 9,53,16,31,0,3,-14,-10,-3,1,-43,30,27,23,7,0,-8,-6,-62,-40,-70,-60,-66,75,81,68,94,54,64,79,61,74,62,139,116,116,116,187,194,250,260,641,628,554,542,645,615]} 1. e4 {[%emt 0:00:16]} c5 {[%emt 0:00:35]} 2. Nc3 {[%emt 0:00:33]} a6 {[%emt 0:00:15]} 3. Nf3 {[%emt 0:00:22]} d6 {[%emt 0:00:10]} 4. d4 {[%emt 0:00:28]} cxd4 {[%emt 0:00:07]} 5. Qxd4 {[%emt 0:00:11]} Nc6 {[%emt 0:01:01]} 6. Qe3 {[%emt 0:00:48] B50: Sicilian: 2...d6, Miscellaneous.} e6 {[%emt 0:01:03]} 7. b3 {[%emt 0:05:19] [#]} b5 $146 {[%emt 0:02:10]} ({Predecessor:} 7... Nf6 8. Bb2 Be7 9. O-O-O Qa5 10. Kb1 O-O 11. h3 b5 12. e5 dxe5 13. Nxe5 Qc7 {1-0 (57) Rudd,J (2281)-McNab,C (2456) Hastings 2006}) 8. Bb2 {[%emt 0:00:30] The position is equal.} Nf6 {[%emt 0:07:25]} 9. O-O-O {[%emt 0:02:53]} Nd7 {[%emt 0:00:30]} (9... Bb7 $15) 10. Kb1 $11 {[%emt 0:04:43]} Be7 {[%emt 0:07:24]} 11. Ne2 {[%emt 0:09:42]} O-O {[%emt 0:06:23]} 12. Qc3 {[%emt 0:01:01][%csl Gb2][%cal Rc3g7] [#]} Nce5 $1 {[%emt 0:01:12]} 13. Nfd4 {[%emt 0:12:43]} (13. Ned4 $11 Bb7 14. Nxe5 Nxe5 15. Qe1) 13... Bb7 $15 {[%emt 0:07:08]} 14. f4 {[%emt 0:02:25]} Rc8 {[%emt 0:00:47]} 15. Qg3 {[%emt 0:03:56] [#]} Bxe4 {[%emt 0:06:52]} 16. fxe5 {[%emt 0:04:38]} dxe5 {[%emt 0:00:37] Hoping for ...Bg6.} 17. Nc3 {[%emt 0:01:21]} Bg6 {[%emt 0:02:12]} 18. Nf3 {[%emt 0:02:28]} Qc7 {[%emt 0:11:02]} 19. Bd3 {[%emt 0:02:04] And now Bxg6 would win.} f5 {[%emt 0:04:55]} 20. Nh4 {[%emt 0:02:02]} Bxh4 {[%emt 0:04:15]} (20... Rf6 $14) 21. Qxh4 $16 {[%emt 0:00:07]} e4 {[%emt 0:00:24]} 22. Be2 {[%emt 0:01:30] Black must now prevent Qe7.} Nb6 {[%emt 0:04:06]} (22... Nf6 $16 {might work better.}) 23. Rc1 $18 {[%emt 0:00:31]} f4 {[%emt 0:03:49]} (23... b4 $142) 24. Bh5 {[%emt 0:01:05]} e3 $2 {[%emt 0:08:27]} (24... Bxh5 25. Qxh5 e3) 25. Bxg6 {[%emt 0:00:27] White is clearly winning.} hxg6 {[%emt 0:00:44]} 26. Ne4 {[%emt 0:00:18] aiming for Ng5.} Nd5 {[%emt 0:00:40]} 27. Ng5 {[%emt 0:00:14] Weighted Error Value: White=0.12 (very precise) /Black=0.47} 1-0

[Event "Krakow Championship-A 2022"]
[Site "Krakow"]
[Date "2022.07.01"]
[Round "8.17"]
[White "Sieber, Fiona"]
[Black "Lye, Lik Zang"]
[Result "1/2-1/2"]
[ECO "B66"]
[WhiteElo "2264"]
[BlackElo "2358"]
[Annotator "TA"]
[PlyCount "107"]
[EventDate "2022.06.25"]
[EventType "swiss"]
[EventCountry "POL"]
[SourceTitle "playchess.com"]
[Source "ChessBase"]
[SourceQuality "1"]
[TimeControl "40/5400+30:1800+30"]

{[%evp 13,107,14,38,23,13,30,34,0,0,-4,62,39,83,57,50,31,20,0,32,29,22,27,26,32,32,21,21,25,25,27,41,0,27,16,22,0,0,0,0,0,0,0,0,0,0,0,0,-15,-15,-15,-15,-134,-134,-151,-155,-154,-139,-130,-145,-161,0,-7,-7,-9,-9,-16,-16,-17,0,0,0,-17,-17,-85,-89,-102,0,0,0,0,0,0,0,0,0,0,0,0,0,0,0,0,0,0,0,0]} 1. e4 {[%emt 0:00:02]} c5 {[%emt 0:00:11]} 2. Nf3 {[%emt 0:00:04]} d6 {[%emt 0:00:07]} 3. d4 {[%emt 0:00:03]} cxd4 {[%emt 0:00:06]} 4. Nxd4 {[%emt 0:00:03]} Nf6 {[%emt 0:00:07]} 5. Nc3 {[%emt 0:00:04]} Nc6 {[%emt 0:00:05]} 6. Bg5 {[%emt 0:00:05]} e6 {[%emt 0:00:14]} 7. Qd2 {[%emt 0:00:06]} a6 {[%emt 0:00:51]} 8. Nxc6 {[%emt 0:00:23] B66: Sicilian: Richter-Rauzer: 7...a6 8 0-0-0 h6.} bxc6 {[%emt 0:00:54]} 9. O-O-O {[%emt 0:00:06][%cal Oe4e5] Strongly threatening e5!} Qa5 {[%emt 0:05:48] [#]} 10. Bf4 $146 {[%emt 0:16:45] White is slightly better.} ({Predecessor:} 10. Bc4 Ng4 11. Bh4 g5 12. Bg3 Ne5 13. Bb3 Be7 14. f3 Rb8 15. Kb1 Rg8 16. h4 Qb4 17. a3 Qb6 18. f4 gxf4 19. Bxf4 a5 20. h5 {0-1 (20) Wen,Y (2581)-Sjugirov,S (2663) Qinhuangdao 2018}) 10... e5 {[%emt 0:05:20]} 11. Bg5 {[%emt 0:00:04][%cal Bf4g5,Bg5h4,Bh4f2][%mdl 32]} Rb8 {[%emt 0:12:47]} (11... Be6 $11) 12. Bc4 {[%emt 0:03:37]} (12. Bxf6 $5 gxf6 13. f3 $11) 12... Be6 {[%emt 0:12:29]} 13. Bb3 {[%emt 0:01:16]} Nd7 {[%emt 0:09:09]} 14. Kb1 {[%emt 0:07:15][%cal Oc3d5] Threatens to win with Nd5!} Nc5 {[%emt 0:03:39]} 15. f4 {[%emt 0:04:16]} h6 {[%emt 0:05:59]} 16. Bh4 {[%emt 0:02:03]} exf4 {[%emt 0:04:13]} 17. Qxf4 {[%emt 0:16:02]} Nxb3 {[%emt 0:19:55]} 18. axb3 {[%emt 0:00:16]} g5 {[%emt 0:00:29]} 19. Qf6 {[%emt 0:00:06]} Qe5 {[%emt 0:01:11]} 20. Qxe5 {[%emt 0:00:35]} dxe5 {[%emt 0:00:06]} 21. Bf2 {[%emt 0:00:34]} Bb4 {[%emt 0:00:58]} 22. Rd3 {[%emt 0:01:05]} Ke7 {[%emt 0:04:32]} 23. Na4 {[%emt 0:04:48]} Rhd8 {[%emt 0:01:41]} 24. Nc5 {[%emt 0:00:00]} Rxd3 {[%emt 0:03:05]} 25. Nxd3 {[%emt 0:00:05]} Bd6 {[%emt 0:00:37]} 26. Nc5 {[%emt 0:06:57]} Rb5 {[%emt 0:03:16]} 27. Nxe6 {[%emt 0:00:28]} Kxe6 $11 {[%emt 0:00:08][%mdl 4096] Endgame KRB-KRB} 28. g4 {[%emt 0:00:39]} Rb4 {[%emt 0:01:01]} 29. Re1 {[%emt 0:00:14]} Rb8 {[%emt 0:03:11]} 30. Be3 {[%emt 0:12:39]} f6 {[%emt 0:01:04]} 31. h3 {[%emt 0:07:35]} h5 {[%emt 0:01:22]} 32. Re2 {[%emt 0:01:41]} (32. Kc1 $11 {keeps the balance.}) 32... Rh8 $1 $17 {[%emt 0:01:04]} 33. Rg2 {[%emt 0:02:38]} hxg4 {[%emt 0:00:44]} 34. hxg4 {[%emt 0:00:01]} Rh3 {[%emt 0:00:28]} 35. Bd2 {[%emt 0:05:00]} Rh1+ {[%emt 0:00:31]} 36. Ka2 {[%emt 0:00:02]} Bc5 {[%emt 0:00:32]} (36... Rf1 $1 $19 {[%cal Of1f4] ...Rf4! is the strong threat.} 37. b4 Rf3) 37. b4 $1 $11 {[%emt 0:00:38]} Bg1 {[%emt 0:00:29]} 38. Kb3 {[%emt 0:00:26]} Rh3+ {[%emt 0:00:26]} 39. Kc4 {[%emt 0:00:48]} Be3 {[%emt 0:00:23]} 40. Be1 {[%emt 0:01:18]} Bc1 {[%emt 0:00:42]} 41. Bc3 {[%emt 0:24:11]} Be3 {[%emt 0:06:04]} 42. Be1 {[%emt 0:02:10]} Bb6 {[%emt 0:06:00]} 43. Rg3 {[%emt 0:01:05] [#]} (43. c3 $11) 43... Rh1 $1 $17 {[%emt 0:01:48]} 44. Bd2 {[%emt 0:00:12] [#]} Rd1 {[%emt 0:03:09]} ({Better is} 44... Rh2 $1 $17 {[%cal Rh2d2]} 45. Kd3 (45. Rd3 $2 Re2 $19) 45... Bd4) 45. Kd3 $11 {[%emt 0:00:34] The position is equal.} Bf2 {[%emt 0:10:09]} 46. Rg2 {[%emt 0:00:01]} Be1 {[%emt 0:00:34]} 47. Ke3 {[%emt 0:00:08]} Bxd2+ {[%emt 0:01:49]} 48. Rxd2 {[%emt 0:00:01] KR-KR} Rg1 {[%emt 0:00:34]} 49. Kf3 {[%emt 0:00:09] Inhibits Rg3+.} Rf1+ {[%emt 0:00:16]} 50. Rf2 {[%emt 0:01:11]} Rd1 {[%emt 0:01:01]} 51. Ke3 {[%emt 0:00:59]} Rg1 {[%emt 0:00:59]} 52. Kf3 {[%emt 0:00:10] Prevents Rg3+.} Rd1 {[%emt 0:01:04]} 53. Ke3 {[%emt 0:01:19]} Rg1 {[%emt 0:00:27]} 54. Kf3 {Against Rg3+.  Weighted Error Value: White=0.15 (very precise) /Black=0.14 (very precise)} 1/2-1/2

[Event "Krakow Championship-A 2022"]
[Site "Krakow"]
[Date "2022.07.01"]
[Round "8.18"]
[White "Goroshkov, Maksym"]
[Black "Michalicka, Milan"]
[Result "1-0"]
[ECO "B21"]
[WhiteElo "2226"]
[BlackElo "2222"]
[Annotator "NA RC"]
[PlyCount "59"]
[EventDate "2022.06.25"]
[EventType "swiss"]
[EventCountry "POL"]
[SourceTitle "playchess.com"]
[Source "ChessBase"]
[SourceQuality "1"]
[TimeControl "40/5400+30:1800+30"]

1. e4 {[%emt 0:00:42]} c5 {[%emt 0:00:15]} 2. d4 {[%emt 0:00:03]} cxd4 {[%emt 0:00:17]} 3. c3 {[%emt 0:00:04]} dxc3 {[%emt 0:00:17]} 4. Nxc3 {[%emt 0:00:03]} Nc6 {[%emt 0:00:13]} 5. Nf3 {[%emt 0:00:04]} d6 {[%emt 0:00:20]} 6. Bc4 {[%emt 0:00:21]} a6 {[%emt 0:00:16]} 7. O-O {[%emt 0:00:21]} Nf6 {[%emt 0:00:11]} 8. a4 {[%emt 0:00:43]} e6 {[%emt 0:02:48]} 9. Qe2 {[%emt 0:00:09]} Be7 {[%emt 0:00:38]} 10. Rd1 {[%emt 0:00:45]} Bd7 {[%emt 0:02:30]} 11. h3 {[%emt 0:01:53]} O-O {[%emt 0:00:56]} 12. Bf4 {[%emt 0:00:21]} Qb8 {[%emt 0:01:31]} 13. Rac1 {[%emt 0:00:41]} Ne5 {[%emt 0:01:19]} 14. b4 {[%emt 0:10:27]} Rc8 {[%emt 0:06:18]} 15. Ba2 {[%emt 0:02:55]} b5 {[%emt 0:01:23]} 16. a5 {[%emt 0:02:02]} Nxf3+ {[%emt 0:08:38]} 17. Qxf3 {[%emt 0:00:11]} Bc6 {[%emt 0:00:29]} 18. Qd3 {[%emt 0:01:25]} Rd8 {[%emt 0:01:33]} 19. Bb1 {[%emt 0:03:07]} Rd7 {[%emt 0:14:24]} 20. f3 {[%emt 0:05:10]} g6 {[%emt 0:01:17]} 21. Ba2 {[%emt 0:01:30]} Qa7+ {[%emt 0:02:40]} 22. Be3 {[%emt 0:00:45]} Qb7 {[%emt 0:00:22]} 23. Nd5 {[%emt 0:02:16]} Bd8 {[%emt 0:09:29]} 24. Nb6 {[%emt 0:01:11]} Bxb6 {[%emt 0:01:21]} 25. Bxb6 {[%emt 0:00:10]} e5 {[%emt 0:02:45]} 26. Qc2 {[%emt 0:01:32]} Bxe4 {[%emt 0:07:31]} 27. fxe4 {[%emt 0:00:09]} Re8 {[%emt 0:00:21]} 28. Bd5 {[%emt 0:00:52]} Nxd5 {[%emt 0:00:28]} 29. Rxd5 {[%emt 0:00:06]} f5 {[%emt 0:00:28]} 30. Qc6 {[%emt 0:01:30]} 1-0

[Event "Krakow Championship-A 2022"]
[Site "Krakow"]
[Date "2022.07.01"]
[Round "8.19"]
[White "Gjestemoen-VonHirsch, Andre"]
[Black "Kvaloy, Aksel Bu"]
[Result "1/2-1/2"]
[ECO "B90"]
[WhiteElo "2236"]
[BlackElo "2296"]
[Annotator "NA RC"]
[PlyCount "25"]
[EventDate "2022.06.25"]
[EventType "swiss"]
[EventCountry "POL"]
[SourceTitle "playchess.com"]
[Source "ChessBase"]
[SourceQuality "1"]
[TimeControl "40/5400+30:1800+30"]

1. e4 {[%emt 0:01:58]} c5 {[%emt 0:00:21]} 2. Nf3 {[%emt 0:00:04]} d6 {[%emt 0:00:18]} 3. d4 {[%emt 0:00:05]} cxd4 {[%emt 0:00:05]} 4. Nxd4 {[%emt 0:00:04]} Nf6 {[%emt 0:00:13]} 5. Nc3 {[%emt 0:00:05]} a6 {[%emt 0:00:18]} 6. Be3 {[%emt 0:00:28]} e5 {[%emt 0:00:45]} 7. Nb3 {[%emt 0:00:04]} Ng4 {[%emt 0:00:42]} 8. Bd2 {[%emt 0:00:07]} Nf6 {[%emt 0:00:24]} 9. Be3 {[%emt 0:00:24]} Ng4 {[%emt 0:00:08]} 10. Bd2 {[%emt 0:00:05]} Nf6 {[%emt 0:00:06]} 11. Be3 {[%emt 0:00:05]} Ng4 {[%emt 0:00:17]} 12. Bd2 {[%emt 0:00:08]} Nf6 {[%emt 0:00:08]} 13. Be3 1/2-1/2

[Event "Krakow Championship-A 2022"]
[Site "Krakow"]
[Date "2022.07.01"]
[Round "8.20"]
[White "Kyc, Jerzy"]
[Black "Kantorik, Marian"]
[Result "1-0"]
[ECO "C70"]
[WhiteElo "2213"]
[BlackElo "2211"]
[Annotator "RC"]
[PlyCount "85"]
[EventDate "2022.06.25"]
[EventType "swiss"]
[EventCountry "POL"]
[SourceTitle "playchess.com"]
[Source "ChessBase"]
[SourceQuality "1"]
[TimeControl "40/5400+30:1800+30"]

1. e4 {[%emt 0:00:03]} e5 {[%emt 0:00:14]} 2. Nf3 {[%emt 0:00:02]} Nc6 {[%emt 0:00:17]} 3. Bb5 {[%emt 0:00:08]} a6 {[%emt 0:00:23]} 4. Ba4 {[%emt 0:00:03]} Nge7 {[%emt 0:00:12]} 5. O-O {[%emt 0:00:16]} g6 {[%emt 0:00:11]} 6. c3 {[%emt 0:00:13]} Bg7 {[%emt 0:01:00]} 7. d4 {[%emt 0:00:05]} b5 {[%emt 0:05:09]} 8. Bb3 {[%emt 0:03:10]} d6 {[%emt 0:07:50]} 9. h3 {[%emt 0:01:02]} O-O {[%emt 0:00:21]} 10. Be3 {[%emt 0:00:41]} Na5 {[%emt 0:01:00]} 11. Bc2 {[%emt 0:01:24]} Nc4 {[%emt 0:00:05]} 12. Qc1 {[%emt 0:02:02]} Nxe3 {[%emt 0:01:07]} 13. Qxe3 {[%emt 0:00:18]} exd4 {[%emt 0:00:58]} 14. cxd4 {[%emt 0:00:26]} c5 {[%emt 0:00:50]} 15. Nc3 {[%emt 0:00:11]} cxd4 {[%emt 0:01:02]} 16. Nxd4 {[%emt 0:00:02]} Bb7 {[%emt 0:01:04]} 17. a3 {[%emt 0:00:45]} Qc7 {[%emt 0:09:40]} 18. Bb3 {[%emt 0:01:29]} Qc5 {[%emt 0:03:20]} 19. Rad1 {[%emt 0:03:04]} Kh8 {[%emt 0:03:39]} 20. Nde2 {[%emt 0:17:51]} Rad8 {[%emt 0:12:09]} 21. Qd2 {[%emt 0:02:27]} f5 {[%emt 0:05:15]} 22. Nf4 {[%emt 0:00:36]} Bc8 {[%emt 0:08:22]} 23. Ncd5 {[%emt 0:04:27]} Nxd5 {[%emt 0:02:42]} 24. exd5 {[%emt 0:00:31]} Rfe8 {[%emt 0:01:09]} 25. Ne6 {[%emt 0:01:42]} Bxe6 {[%emt 0:00:35]} 26. dxe6 {[%emt 0:00:01]} Qe5 {[%emt 0:03:10]} 27. Bd5 {[%emt 0:11:35]} Rc8 {[%emt 0:03:14]} 28. Qa5 {[%emt 0:00:42]} Rc5 {[%emt 0:05:43]} 29. Qxa6 {[%emt 0:00:34]} Bf8 {[%emt 0:03:59]} 30. Qb7 {[%emt 0:04:50]} Qxb2 {[%emt 0:03:25]} 31. a4 {[%emt 0:09:09]} Qg7 {[%emt 0:10:21]} 32. a5 {[%emt 0:04:03]} Qxb7 {[%emt 0:01:00]} 33. Bxb7 {[%emt 0:00:02]} Rc7 {[%emt 0:01:05]} 34. a6 {[%emt 0:04:13]} Rb8 {[%emt 0:01:47]} 35. Rc1 {[%emt 0:03:47]} Rcxb7 {[%emt 0:00:09]} 36. axb7 {[%emt 0:00:07]} Rxb7 {[%emt 0:00:04]} 37. Rc8 {[%emt 0:01:12]} Kg7 {[%emt 0:00:32]} 38. Rd8 {[%emt 0:00:23]} Be7 {[%emt 0:02:54]} 39. Rd7 {[%emt 0:00:09]} Rxd7 {[%emt 0:00:18]} 40. exd7 {[%emt 0:00:02]} Kf7 {[%emt 0:00:24]} 41. Re1 {[%emt 0:31:54]} b4 {[%emt 0:30:48]} 42. Re3 {[%emt 0:01:40]} d5 {[%emt 0:03:00]} 43. Re5 {[%emt 0:00:20]} 1-0

[Event "Krakow Championship-A 2022"]
[Site "Krakow"]
[Date "2022.07.01"]
[Round "8.21"]
[White "Easwaralingam, Adesh"]
[Black "Torkkola, Henri"]
[Result "0-1"]
[ECO "C07"]
[WhiteElo "2116"]
[BlackElo "2197"]
[Annotator "RC"]
[PlyCount "85"]
[EventDate "2022.06.25"]
[EventType "swiss"]
[EventCountry "POL"]
[SourceTitle "playchess.com"]
[Source "ChessBase"]
[SourceQuality "1"]
[TimeControl "40/5400+30:1800+30"]

1. e4 {[%emt 0:00:33]} e6 {[%emt 0:00:11]} 2. d4 {[%emt 0:00:22]} d5 {[%emt 0:00:07]} 3. Nd2 {[%emt 0:00:08]} c5 {[%emt 0:00:07]} 4. Ngf3 {[%emt 0:00:44]} cxd4 {[%emt 0:00:12]} 5. Nxd4 {[%emt 0:00:34]} Nc6 {[%emt 0:00:12]} 6. Bb5 {[%emt 0:03:51]} Bd7 {[%emt 0:00:08]} 7. Nxc6 {[%emt 0:00:09]} bxc6 {[%emt 0:00:51]} 8. Bd3 {[%emt 0:00:07]} Bd6 {[%emt 0:07:56]} 9. O-O {[%emt 0:05:40]} Qc7 {[%emt 0:03:04]} 10. h3 {[%emt 0:07:17]} Ne7 {[%emt 0:03:12]} 11. c4 {[%emt 0:00:28]} d4 {[%emt 0:06:32]} 12. Nb3 {[%emt 0:07:17]} c5 {[%emt 0:02:43]} 13. f4 {[%emt 0:00:56]} e5 {[%emt 0:29:32]} 14. f5 {[%emt 0:03:13]} f6 {[%emt 0:02:46]} 15. Qh5+ {[%emt 0:01:11]} Kf8 {[%emt 0:00:06]} 16. g4 {[%emt 0:02:17]} Nc6 {[%emt 0:14:16]} 17. a3 {[%emt 0:05:12]} Rb8 {[%emt 0:02:21]} 18. Nd2 {[%emt 0:02:18]} Ke7 {[%emt 0:00:08]} 19. g5 {[%emt 0:02:21]} h6 {[%emt 0:01:08]} 20. gxf6+ {[%emt 0:05:13]} gxf6 {[%emt 0:00:05]} 21. Kh2 {[%emt 0:01:20]} Be8 {[%emt 0:04:14]} 22. Qh4 {[%emt 0:04:48]} Bf7 {[%emt 0:03:22]} 23. Rg1 {[%emt 0:03:27]} Qb7 {[%emt 0:03:17]} 24. Rg7 {[%emt 0:02:17]} Rbg8 {[%emt 0:00:51]} 25. Rxg8 {[%emt 0:03:44]} Bxg8 {[%emt 0:00:10]} 26. Qg3 {[%emt 0:03:21]} Bf7 {[%emt 0:00:06]} 27. Qg7 {[%emt 0:11:38]} Qb8 {[%emt 0:00:08]} 28. Nf3 {[%emt 0:01:36]} Rg8 {[%emt 0:00:57]} 29. Qxh6 {[%emt 0:03:39]} Qb3 {[%emt 0:00:21]} 30. Be2 {[%emt 0:09:45]} d3 {[%emt 0:03:57]} 31. Qe3 {[%emt 0:02:39]} Nd4 {[%emt 0:00:05]} 32. Bxd3 {[%emt 0:02:57]} Qd1 {[%emt 0:00:07]} 33. Nd2 {[%emt 0:01:03]} Nxf5 {[%emt 0:07:36]} 34. Qf2 {[%emt 0:01:04]} Nd4 {[%emt 0:00:20]} 35. b4 {[%emt 0:00:32]} Be6 {[%emt 0:01:10]} 36. Bf1 {[%emt 0:01:07]} Bd7 {[%emt 0:03:55]} 37. Rb1 {[%emt 0:00:54]} Qh5 {[%emt 0:00:41]} 38. Bg2 {[%emt 0:00:51]} f5 {[%emt 0:00:40]} 39. Bb2 {[%emt 0:01:05]} f4 {[%emt 0:01:09]} 40. Bxd4 {[%emt 0:02:03]} cxd4 {[%emt 0:00:58]} 41. Nf1 {[%emt 0:04:05]} Kf8 {[%emt 0:04:21]} 42. Rb3 {[%emt 0:05:28]} Be7 {[%emt 0:00:08]} 43. Kg1 {[%emt 0:02:11]} 0-1

[Event "Krakow Championship-A 2022"]
[Site "Krakow"]
[Date "2022.07.02"]
[Round "9.1"]
[White "Warakomski, Tomasz"]
[Black "Fus, Jakub"]
[Result "1/2-1/2"]
[ECO "B11"]
[WhiteElo "2534"]
[BlackElo "2378"]
[Annotator "TA"]
[PlyCount "115"]
[EventDate "2022.06.25"]
[EventType "swiss"]
[EventCountry "POL"]
[SourceTitle "playchess.com"]
[Source "ChessBase"]
[SourceQuality "1"]
[TimeControl "40/5400+30:1800+30"]

{[%evp 18,115,12,16,14,16,16,8,18,11,12,15,27,27,35,31,26,32,53,46,45,48,49,39,46,43,40,23,34,20,18,18,18,20,25,8,21,4,21,4,15,5,8,8,8,8,10,0,6,5,5,6,8,0,0,0,0,0,0,0,0,0,0,0,0,0,0,0,0,0,1,-18,-18,-29,-29,-29,-29,-29,-29,-29,-29,-96,-8,-8,-8,-8,-8,-8,-8,-8,-8,-8,-8,-8,-8,-8,-7,-8,-8,-56]} 1. e4 {[%emt 0:00:05]} c6 {[%emt 0:00:21]} 2. Nc3 {[%emt 0:01:01]} d5 {[%emt 0:00:18]} 3. Nf3 {[%emt 0:00:05]} Bg4 {[%emt 0:02:41]} 4. h3 {[%emt 0:00:07]} Bxf3 {[%emt 0:00:32]} 5. Qxf3 {[%emt 0:00:07]} e6 {[%emt 0:01:59]} 6. d4 {[%emt 0:00:55]} Nf6 {[%emt 0:01:56]} 7. Be2 {[%emt 0:00:41]} dxe4 {[%emt 0:02:06]} 8. Qe3 {[%emt 0:00:06]} Nbd7 {[%emt 0:04:45]} 9. Nxe4 {[%emt 0:04:11]} Nxe4 {[%emt 0:01:17]} 10. Qxe4 {[%emt 0:00:07]} Nf6 {[%emt 0:06:18] B11: Caro-Kann: Two Knights Variation.} 11. Qe3 {[%emt 0:01:09]} Bd6 {[%emt 0:01:20] [#]} 12. Qb3 $146 {[%emt 0:05:33]} ({Predecessor:} 12. Bd2 Nd5 13. Qe4 Qf6 14. c4 Nf4 15. Bf3 Qg6 16. g3 Nd3+ 17. Ke2 Nxb2 18. c5 {1-0 (32) Lancia,T-Aiken,R (1985) ICCF email 2013}) 12... Qb6 {[%emt 0:04:05]} 13. c3 {[%emt 0:01:26]} O-O {[%emt 0:01:25]} 14. O-O {[%emt 0:00:44]} e5 {[%emt 0:08:42]} 15. dxe5 {[%emt 0:08:43]} Bxe5 {[%emt 0:00:29]} 16. Bf3 {[%emt 0:06:45]} Qxb3 {[%emt 0:04:56]} 17. axb3 {[%emt 0:00:06]} a6 {[%emt 0:00:21]} 18. Rd1 {[%emt 0:03:10]} Rad8 {[%emt 0:01:35]} 19. Be3 {[%emt 0:00:24]} Bc7 {[%emt 0:00:19]} 20. g3 {[%emt 0:23:24]} Rxd1+ {[%emt 0:01:14]} 21. Rxd1 {[%emt 0:00:05]} Rd8 {[%emt 0:00:07]} 22. Re1 {[%emt 0:00:13]} Re8 {[%emt 0:02:31]} 23. Kg2 {[%emt 0:03:33]} Bb6 {[%emt 0:01:30]} 24. Bd2 {[%emt 0:00:30]} Rxe1 {[%emt 0:00:47]} 25. Bxe1 $11 {[%emt 0:00:04][%mdl 4096] Endgame KBB-KBN} Kf8 {[%emt 0:00:55]} 26. Bd2 {[%emt 0:01:21]} Ke7 {[%emt 0:00:47]} 27. Kf1 {[%emt 0:00:17]} Ke6 {[%emt 0:00:39]} 28. Ke2 {[%emt 0:00:08]} Nd5 {[%emt 0:00:22]} 29. c4 {[%emt 0:02:50]} Nf6 {[%emt 0:00:16]} 30. b4 {[%emt 0:00:40]} Bd4 {[%emt 0:01:33]} 31. b3 {[%emt 0:00:18]} Ne8 {[%emt 0:05:17]} 32. Bg2 {[%emt 0:02:40]} Nd6 {[%emt 0:00:52]} 33. f4 {[%emt 0:00:19]} f5 {[%emt 0:01:04]} 34. g4 {[%emt 0:03:00]} g6 {[%emt 0:02:23]} 35. g5 {[%emt 0:05:18]} Bg7 {[%emt 0:00:51]} 36. Kd3 {[%emt 0:02:36]} h6 {[%emt 0:01:09]} 37. h4 {[%emt 0:00:07]} hxg5 {[%emt 0:00:07]} 38. hxg5 {[%emt 0:00:40]} Ne8 {[%emt 0:01:41]} 39. b5 {[%emt 0:15:28]} axb5 {[%emt 0:00:55]} 40. cxb5 {[%emt 0:00:05]} Kd7 {[%emt 0:01:29]} 41. b6 {[%emt 0:36:07]} Nd6 {[%emt 0:34:19]} 42. Be3 {[%emt 0:01:20]} Bf8 {[%emt 0:07:47]} 43. Bc5 {[%emt 0:00:00]} Be7 {[%emt 0:00:00]} 44. Bf1 {[%emt 0:00:00]} Nc8 {[%emt 0:00:00]} 45. Kd4 {[%emt 0:00:00]} Bd6 {[%emt 0:00:00]} 46. Bc4 {[%emt 0:00:00]} Bxf4 {[%emt 0:00:00]} 47. Bf7 {[%emt 0:00:00]} Bxg5 {[%emt 0:00:00]} 48. Ke5 {[%emt 0:00:52] Prevents Bf6+.} Be7 {[%emt 0:00:00]} 49. Be6+ {[%emt 0:00:12] [#]} (49. Be3 $11) 49... Ke8 {[%emt 0:00:00]} (49... Kd8 $1 $17 50. Bxc8 Bxc5 51. Bxb7 Ke7) 50. Bxc8 {[%emt 0:00:19] Black must now prevent Bxe7. The position is equal.} Bxc5 {[%emt 0:00:00] KB-KB} 51. Kf6 {[%emt 0:01:09]} Bxb6 {[%emt 0:00:00]} 52. Kxg6 {[%emt 0:00:28]} f4 {[%emt 0:00:00][%cal Bf5f4,Bf4f3,Bf3f2][%mdl 32]} 53. Bxb7 {[%emt 0:00:17]} Kd7 {[%emt 0:00:00]} 54. Kf5 {[%emt 0:00:12]} f3 {[%emt 0:00:00]} 55. Ke4 {[%emt 0:00:10]} f2 {[%emt 0:00:00]} 56. Ba6 {[%emt 0:00:04]} Kd6 {[%emt 0:00:00]} 57. Kf3 {[%emt 0:00:12]} Ba7 {[%emt 0:00:00]} 58. Ke4 {Weighted Error Value: White=0.05 (flawless) /Black=0.06 (flawless)} (58. b4 $11) 1/2-1/2